Cogmind - Beta 13 @@@ ROGUE MODE // 2024.04.01 @ 03:40:12 Player: raiguard Result: Destroyed by G-47 Trooper with Particle Gun Performance ------------- Evolutions (2) 1000 Regions Visited (3) 600 Robots Destroyed (55) 275 Value Destroyed (1435) 1435 Prototype IDs (3) 60 Alien Tech Used (0) 0 Bonus (294) 294 TOTAL SCORE: 3664 Bonus ------- Pacifist 200 High Alert Combat Kills 94 Cogmind --------- Core Integrity 0/550 Matter 21/300 Energy 98/250 System Corruption 0% Temperature Cool (96) Movement Treading (240) Ox1 Location -8/Materials Parts ------- > --- POWER (1) -------- Ion Engine > --- PROPULSION (4) --- Light Treads > --- UTILITY (4) ------ Large Storage Unit Visual Processing Unit > --- WEAPON (2) ------- Particle Gun Gauss Rifle > --- INVENTORY (15) --- Titanium Leg Large Storage Unit Seismic Detector Power Shielding Improved Light Armor Plating Recalibrator Powered Hammer Peak State ------------ > --- POWER ------------ Reinforced Ion Engine > --- PROPULSION ------- Aluminum Leg Improved Aluminum Leg Improved Aluminum Leg Improved Aluminum Leg > --- UTILITY ---------- Heat Sink Large Storage Unit Visual Processing Unit Terrain Scan Processor > --- WEAPON ----------- Particle Gun Heavy Assault Rifle > --- INVENTORY -------- Ion Engine Light Treads Armored Wheel Large Storage Unit Seismic Detector Power Shielding Light Armor Plating Recalibrator Heavy EM Pulse Gun Rocket Launcher Rocket Launcher Powered Hammer [Rating: 21] Favorites ----------- Power Reinforced Ion Engine Engine Reinforced Ion Engine Propulsion Improved Aluminum Leg Treads Light Treads Leg Improved Aluminum Leg Wheel Armored Wheel Hover Unit Hover Unit Flight Unit Flight Unit Utility Small Storage Unit Device Heat Sink Storage Small Storage Unit Processor Visual Processing Unit Hackware Hacking Suite Protection Light Armor Plating Weapon Particle Gun Energy Gun Particle Gun Energy Cannon Light EM Pulse Cannon Ballistic Gun Assault Rifle Launcher Rocket Launcher Build | -11 -10 -9 -8 ------- Run | Yrd Mat Mat Mat Slots Evolved 4 | . . 2 2 Power . | . . . . Propulsion 2 | . . 2 . Utility 2 | . . . 2 Weapon . | . . . . Parts Attached 69 | 5 1 41 22 Power 8 | 1 . 3 4 Engine 8 | 1 . 3 4 Core . | . . . . Reactor . | . . . . Propulsion 31 | 2 . 23 6 Treads 2 | . . . 2 Leg 16 | 2 . 12 2 Wheel 9 | . . 7 2 Hover 2 | . . 2 . Flight 2 | . . 2 . Utility 10 | 1 . 6 3 Device 1 | . . 1 . Storage 3 | 1 . 2 . Processor 3 | . . 1 2 Hackware 2 | . . 2 . Protection 1 | . . . 1 Artifact . | . . . . Weapon 20 | 1 1 9 9 Energy Gun 8 | . 1 4 3 Energy Cannon 1 | . . 1 . Ballistic Gun 7 | 1 . 4 2 Ballistic Cannon . | . . . . Launcher 4 | . . . 4 Special Weapon . | . . . . Impact Weapon . | . . . . Slashing Weapon . | . . . . Piercing Weapon . | . . . . Special Melee Weapon . | . . . . Unidentified Prototypes . | . . . . Parts Lost 24 | . . 10 14 Power 4 | . . 1 3 Propulsion 9 | . . 5 4 Utility 2 | . . . 2 Weapon 9 | . . 4 5 Highest Loss Streak 6 | . . 4 6 To Critical Strikes . | . . . . Average Slot Usage (%) 88 | . 79 94 72 Engine 10 | . 14 10 6 Leg 26 | . 28 27 18 Wheel 5 | . . 6 1 Hover 3 | . . 5 . Device 3 | . . 4 5 Storage 10 | . 14 10 9 Processor 2 | . . 1 11 Hackware 3 | . . 5 . Energy Gun 11 | . 8 12 6 Ballistic Gun 8 | . 14 8 5 Naked Turns . | . . . . Heaviest Build 40 | 12 15 37 40 Greatest Support 52 | 20 20 52 49 Greatest Overweight (x) 2 | . . 2 2 Average Overweight (x) . | . . . . Largest Inventory Capacity 15 | 8 8 15 15 Average Capacity 9 | 7 8 8 15 Most Carried 15 | 3 8 12 15 Average Carried 8 | 1 5 8 11 Final Capacity 15 | 8 8 15 15 Final Carried 12 | 2 8 12 7 Class Distribution -------------------- 57% | Mutant 42% | Scavenger-Mutant Dominant Class ---------------- Mutant | -10/Materials Scavenger-Mutant | -9/Materials Mutant | -8/Materials Resources | -11 -10 -9 -8 ----------- Run | Yrd Mat Mat Mat Matter Collected 1028 | 210 62 507 249 Remotely . | . . . . Salvage Created 1413 | . . 845 568 Parts 90 | . . 62 28 Haulers Intercepted 2 | . . 1 1 Recyclers Shooed . | . . . . Parts Field Recycled . | . . . . Retrieved Matter . | . . . . Parts Self-Destructed . | . . . . Prevented . | . . . . Kills | -11 -10 -9 -8 ------- Run | Yrd Mat Mat Mat Combat Hostiles Destroyed 38 | . . 23 15 Guns 23 | . . 18 5 AOE 14 | . . 5 9 Classes Destroyed 12 | . . 9 3 Worker 5 | . . 4 1 Builder 5 | . . 2 3 Tunneler 1 | . . . 1 Hauler 2 | . . 1 1 Recycler 1 | . . 1 . Operator 1 | . . . 1 Watcher 2 | . . 2 . Swarmer 14 | . . 11 3 Grunt 14 | . . 4 10 Brawler 1 | . . 1 . Sentry 8 | . . 7 1 Hunter 1 | . . . 1 Best Kill Streak 15 | . . 11 15 Combat Bots Only 6 | . . 6 6 Max Kills in Single Turn 4 | . . 4 3 Gunslinging . | . . . . Exploded 3 | . . 3 2 Melee . | . . . . Uniques/NPCs Destroyed . | . . . . Combat | -11 -10 -9 -8 -------- Run | Yrd Mat Mat Mat Hostile Shots Fired 362 | . . 175 187 Missed 112 | . . 51 61 Damage Taken 3742 | . . 1746 1996 Core 868 | . . 318 550 Absorbed by Shields . | . . . . Regen/Repaired (Parts) 139 | . . 139 . Core Remaining (%) 73 | 100 100 20 . Volleys Fired 113 | . 5 65 43 Largest 2 | . 2 2 2 Hottest 130 | . 85 130 93 Shots Fired 222 | . 9 127 86 Gun 198 | . 9 125 64 Cannon 2 | . . 2 . Launcher 22 | . . . 22 Special . | . . . . Kinetic 102 | . 5 64 33 Thermal 75 | . 4 61 10 Explosive 22 | . . . 22 Electromagnetic 23 | . . 2 21 Robot Hit Streak 18 | . 1 18 18 Robot Miss Streak 7 | . 5 7 3 Penetration Max . | . . . . Secondary Targets 7 | . . 5 2 Max Gunslinging Chain 1 | . . 1 1 Shots Hit Robots 135 | . 1 82 52 Core Hits 84 | . . 41 43 Critical Kills . | . . . . Critical Parts Destroyed 1 | . . . 1 Critical Strikes 4 | . . 2 2 Burn 2 | . . 2 . Destroy 1 | . . . 1 Corrupt 1 | . . . 1 Melee Attacks . | . . . . Impact . | . . . . Slashing . | . . . . Piercing . | . . . . Sneak Attacks . | . . . . Combat Hostiles . | . . . . Follow-up Attacks . | . . . . Damage Inflicted 4205 | . 25 2023 2157 Guns 1796 | . 25 1110 661 Cannons . | . . . . Explosions 2409 | . . 913 1496 Melee . | . . . . Ramming . | . . . . Kinetic 781 | . 25 440 316 Thermal 976 | . . 670 306 Explosive 2208 | . . 913 1295 Electromagnetic 240 | . . . 240 Impact . | . . . . Slashing . | . . . . Piercing . | . . . . Highest Corruption 1 | . . 1 . Average Corruption 1 | . . 1 . Corruption Purged . | . . . . Corruption Blocked . | . . . . Effects 1 | . . 1 . Matter Fused 1 | . . 1 . Overload Shots . | . . . . Overflow Damage 187 | . . 113 74 Projectiles . | . . . . Explosions 187 | . . 113 74 Melee . | . . . . Knockbacks . | . . . . Impact . | . . . . Kinetic . | . . . . Secondary . | . . . . Self-Inflicted Damage 541 | . . 356 185 Shots 11 | . . 5 6 Rammed . | . . . . Targets Rammed . | . . . . Kicked . | . . . . Crushed . | . . . . Highest Temperature 315 | . 72 315 129 Average Temperature 68 | . 34 82 30 Received Heat Transfer 1227 | . . 309 918 Effects 2 | . . 2 . Interference 2 | . . 2 . Siege Activations . | . . . . Robots Corrupted 1 | . . . 1 Combat Hostiles 1 | . . . 1 Parts Fried . | . . . . Impact Corruptions . | . . . . Robots Melted . | . . . . Combat Hostiles . | . . . . Parts Melted 7 | . . 7 . Heat Transferred 2198 | . . 1739 459 Parts Sabotaged . | . . . . Parts Stolen . | . . . . Parts Stripped . | . . . . Power Chain Reactions 1 | . . . 1 Alert | -11 -10 -9 -8 ------- Run | Yrd Mat Mat Mat Peak Influence 568 | . 39 551 568 Initial 209 | . . 16 209 Average 208 | . 24 230 322 Maximum Alert Level 2 | . . 2 2 Low Security (%) 45 | 100 100 42 . Level 1 33 | . . 31 74 Level 2 21 | . . 26 25 Level 3 . | . . . . Level 4 . | . . . . Level 5 . | . . . . High Security . | . . . . Max Security . | . . . . Squads Dispatched 5 | . 1 1 3 Investigation 2 | . 1 1 . Extermination . | . . . . Reinforcement 3 | . . . 3 Assault . | . . . . Garrison . | . . . . Intercept . | . . . . Searches Triggered . | . . . . Construction Impeded 2 | . . . 2 Haulers Reinforced . | . . . . Active Scanning Responses . | . . . . Cargo Convoy Interrupts . | . . . . Stealth | -11 -10 -9 -8 --------- Run | Yrd Mat Mat Mat Distress Signals 4 | . . 3 1 Communications Jammed . | . . . . Distress Signals . | . . . . Times Spotted 57 | . 1 33 23 Peak Tracking Total 6 | . 1 6 4 Tactical Retreats 3 | . . 2 1 Traps | -11 -10 -9 -8 ------- Run | Yrd Mat Mat Mat Traps Triggered 1 | . . 1 . Indirectly . | . . . . Trap Hack Attempts . | . . . . Triggered . | . . . . Disarmed . | . . . . Reprogrammed . | . . . . Reused . | . . . . Traps Extracted . | . . . . Installed . | . . . . Triggered 1 | . . . 1 Machines | -11 -10 -9 -8 ---------- Run | Yrd Mat Mat Mat Machines Disabled 14 | . 1 8 5 Max in Single Turn 2 | . 1 2 1 Machines Repaired . | . . . . Machines Dismantled . | . . . . Machines Sabotaged . | . . . . Overloaded Fab Kills . | . . . . Hacking | -11 -10 -9 -8 --------- Run | Yrd Mat Mat Mat Machines Accessed 13 | . 2 11 . Terminals 10 | . 2 8 . Fabricators . | . . . . Repair Stations 1 | . . 1 . Recycling Units 1 | . . 1 . Scanalyzers 1 | . . 1 . Garrison Access . | . . . . Total Hacks 68 | . 9 59 . Successful 48 | . 6 42 . Failed 20 | . 3 17 . Catastrophic 2 | . . 2 . Database Lockouts . | . . . . Manual 7 | . . 7 . Terminals 42 | . 9 33 . Fabricators . | . . . . Repair Stations 5 | . . 5 . Recycling Units 3 | . . 3 . Scanalyzers 18 | . . 18 . Garrison Access . | . . . . Terminal Hacks 26 | . 6 20 . Record 12 | . 1 11 . Prototype ID Bank 1 | . . 1 . Emergency Access Points 2 | . 1 1 . Alert Level 1 | . . 1 . Unreport Threat 1 | . . 1 . Locate Traps 2 | . 1 1 . Dispatch Records 1 | . 1 . . Maintenance Status 1 | . . 1 . Investigation Status 1 | . . 1 . Hauler Manifests 2 | . 1 1 . Zone Layout 2 | . 1 1 . Fabricator Hacks . | . . . . Repair Station Hacks 4 | . . 4 . Scan Component 2 | . . 2 . Repair 2 | . . 2 . Recycling Unit Hacks 3 | . . 3 . Recycle Component 1 | . . 1 . Process 1 | . . 1 . Retrieve Matter 1 | . . 1 . Scanalyzer 15 | . . 15 . Insert Component 7 | . . 7 . Analyze 8 | . . 8 . Garrison Access Hacks . | . . . . Unauthorized Hacks . | . . . . Terminals . | . . . . Fabricators . | . . . . Repair Stations . | . . . . Recycling Units . | . . . . Scanalyzers . | . . . . Garrison Access . | . . . . Data Cores Recovered . | . . . . Used . | . . . . Hacking Detections 12 | . 2 10 . Full Trace Events 2 | . 1 1 . Feedback Events . | . . . . Feedback Blocked . | . . . . Robot Schematics Acquired . | . . . . Robots Built . | . . . . Authchips . | . . . . Time . | . . . . Total Robot Build Rating . | . . . . Part Schematics Acquired 6 | . . 6 . Parts Built . | . . . . Authchips . | . . . . Time . | . . . . Total Part Build Rating . | . . . . Parts Repaired 2 | . . 2 . Time 52 | . . 52 . Parts Recycled 1 | . . 1 . Recycled Matter 31 | . . 31 . Retrieved Matter 31 | . . 31 . Retrieved Components . | . . . . Parts Scanalyzed 6 | . . 6 . Part Schematics Acquired 6 | . . 6 . Parts Damaged . | . . . . Bothacking | -11 -10 -9 -8 ------------ Run | Yrd Mat Mat Mat Used RIF Installer . | . . . . Robots Hacked . | . . . . Non-combat . | . . . . Combat . | . . . . Robot Hacks Applied . | . . . . Relay Couplers Released . | . . . . Fabnet Peak Effective % . | . . . . Robots Rewired . | . . . . Allies Hacked . | . . . . Hacks Repelled . | . . . . Allies | -11 -10 -9 -8 -------- Run | Yrd Mat Mat Mat Total Allies . | . . . . Largest Group . | . . . . Highest-Rated Group . | . . . . Highest-Rated Ally . | . . . . Total Orders . | . . . . Ally Attacks . | . . . . Total Damage . | . . . . Kills . | . . . . Allies Corrupted . | . . . . Allies Melted . | . . . . Intel | -11 -10 -9 -8 ------- Run | Yrd Mat Mat Mat Robot Analysis Total . | . . . . Derelict Logs Recovered . | . . . . Drone Launches . | . . . . Drone Recoveries . | . . . . Exploration | -11 -10 -9 -8 ------------- Run | Yrd Mat Mat Mat Turns Passed 2896 | 166 341 1910 479 Spaces Moved 1992 | 128 264 1405 195 Core 16 | 16 . . . Treads 15 | . . . 15 Legs 1339 | 112 264 818 145 Wheels 110 | . . 75 35 Hover 512 | . . 512 . Flight . | . . . . Fastest Speed 50 | 50 120 66 100 Average Speed 109 | 111 120 101 146 Slowest Speed 260 | 120 120 190 260 Overloaded Moves . | . . . . Propulsion Burnouts . | . . . . Robots Hopped . | . . . . Cave-ins Triggered 1 | . . 1 . Exploration Rate (%) 27 | 6 25 68 12 Regions Visited 3 Branch Regions . Pre-discovered Areas . | . . . . Known Exits Taken . | . . . . Unknown Exits Taken 3 | 1 1 1 . Scrap Searched . | . . . . Spaces Dug . | . . . . Terrain Destroyed 189 | . . 92 97 Melee . | . . . . Projectile 1 | . . . 1 AOE 188 | . . 92 96 Terrain Rammed . | . . . . Walls Destroyed . | . . . . Machines Disabled . | . . . . Actions | -11 -10 -9 -8 --------- Run | Yrd Mat Mat Mat Total 2496 | 150 278 1765 303 Wait 254 | 13 3 209 29 Move 1989 | 127 263 1404 195 Hop . | . . . . Pick Up 42 | 5 6 22 9 Fast Attach 18 | 2 1 15 . Attach 35 | 3 . 16 16 Detach 11 | . . 8 3 Swap 16 | . . 10 6 Drop 18 | . . 16 2 Fire 113 | . 5 65 43 Melee . | . . . . Ram . | . . . . Kick . | . . . . Crush . | . . . . Escape Stasis . | . . . . Rewire . | . . . . Trap . | . . . . Miscellaneous . | . . . . Route ------- -11/Scrapyard -10/Materials (discovered 2 exits: *Mat / [*Min]) -9/Materials (discovered 3 exits: *Mat / [*Min] / [*Sto]) -8/Materials History --------- Turn | Location | Event 2 | -11/Scrapyard | Met Revision 17 10 | -11/Scrapyard | Discovered new exit (range 15) 167 | -11/Scrapyard | Entered Materials 316 | -10/Materials | Build established: Mutant 373 | -10/Materials | Discovered new exit (range 16) 486 | -10/Materials | Discovered new exit (range 15) 508 | -10/Materials | Entered another Materials area 508 | -9/Materials | Evolved 2 slots: Propulsion x2 995 | -9/Materials | Build established: Scavenger-Mutant 1257 | -9/Materials | Lost 3 parts (1p1n1w) 1289 | -9/Materials | Discovered new exit (range 14) 1381 | -9/Materials | Core integrity fell below 50% 1395 | -9/Materials | Crushed by falling debris 1411 | -9/Materials | Lost 4 parts (2n2w) 1486 | -9/Materials | Repaired Sml. Storage Unit 1523 | -9/Materials | Repaired Aluminum Leg 1544 | -9/Materials | Build established: Mutant 2163 | -9/Materials | Discovered new exit (range 12) 2203 | -9/Materials | Discovered new exit (range 16) 2234 | -9/Materials | Build established: Scavenger-Mutant 2418 | -9/Materials | Entered another Materials area 2418 | -8/Materials | Evolved 2 slots: Utility x2 2671 | -8/Materials | Lost 6 parts (1p3n1u1w) 2759 | -8/Materials | Core integrity fell below 50% 2778 | -8/Materials | Lost 5 parts (1p1n1u2w) 2877 | -8/Materials | Core integrity fell below 20% 2897 | -8/Materials | Destroyed by G-47 Trooper with Particle Gun Last Messages --------------- 02864_ The unstable cave ceiling collapses. 02866_ K-01 Serf collects debris. 02867_ The unstable cave ceiling collapses. 02868_ Rocket Launcher destroyed. 02870_ K-01 Serf collects debris. 02872_ Critical hit (Burn: +37). 02873_ The unstable cave ceiling collapses. 02873_ K-01 Serf collects debris. 02876_ Rocket Launcher destroyed. 02876_ Critical hit (Burn: +37). 02877_ The unstable cave ceiling collapses. 02877_ K-01 Serf collects debris. 02880_ K-01 Serf suffers critical hit (Burn). 02881_ K-01 Serf collects debris. 02889_ Slug penetrates G-47 Trooper. 02893_ The unstable cave ceiling collapses. 02893_ K-01 Serf collects debris. 02894_ Lgt. Deuterium Engine destroyed. 02896_ K-01 Serf collects debris. 02896_ Acquired 15 matter. Map ----- +----------------------------------------------------+ | ?????????????????????????????????????????????????? | | ?????????????????????????????????????????????????? | | ?????????????????????????????????????????????????? | | ?????????????????????????????????????????????????? | | ?????????????????????????????????????????????????? | | ?????????????????????????????????????????????????? | | ?????????????????????????????????????????????????? | | ?????????????????????????????????????????????????? | | ?????????????????????????????????????????????????? | | ????????????????????????"?????? ????????????????? | | ???????????????????????""?????? ???????????????? | | ??????????????????????? ??##? "???????????? | | ??????????????????????## ## ## ! ??????????? | | ?????????????????????? # ??????????? | | ?????????????????????? ^ "???????????? | | ????????????????????### ""???????????? | | ????????????????????# # """??? #????? | | ????????????????????# """"? #????? | | ?????????? ????????? """ #????? | | ??????????? ######## # # ##???? | | ?????????????? ????? | | ???????????????? """ #????? | | ??????????????????? """"" #????? | | ???????????????????### # ;;; """"" #????? | | ???????????????????# [ ; """"" #????? | | ??????????????????## "" @ =# """ #????? | | ??????????????????# "R [g #???? | | ??????????????????## "[* [ ^ #??? ? | | ??????????????????# / [[[g ####+# | | ??????????????????## / k g | | ?????????????????#### # [ *] | | ?????????????????# w # ] | | ?????????????????# r | | ?????????????????# = ###### | | ?????????????????# = % #????? | | ?????????????????# # ### # "T"# #????? | | ?????????????????# ###?? ##### #????? | | ?????????????????# ##?????###???# #####? | | ?????????????????# ] ##??########### //#? | | ?????????????????# #???# # /#? | | ?????????????????##########???# # !#? | | ??????????????????????????????# !!#? | | ??????????????????????????????# %% !!#? | | ??????????????????????????????# """ [ !!#? | | ??????????????????????????????# """ #####? | | ??????????????????????????????# "" " # #????? | | ??????????????????????????????# #####????? | | ??????????????????????????????###########????????? | | ?????????????????????????????????????????????????? | | ?????????????????????????????????????????????????? | +----------------------------------------------------+ Best States ------------- Heat Dissipation 41 Energy Generation 14 Energy Capacity 265 Matter Stores 300 Matter Capacity 300 Sight Range 18 Terrain Scan Density 85 Armor Coverage 150 Evasion (%) 55 Recoil Reduction 1 Offensive Hacking 10 Item Schematics ----------------- Terrain Scan Processor | -9/Materials | Scanalyzed Imp. Aluminum Leg | -9/Materials | Scanalyzed Hvy. Assault Rifle | -9/Materials | Scanalyzed Ion Engine | -9/Materials | Scanalyzed Arm. Wheel | -9/Materials | Scanalyzed Visual Processing Unit | -9/Materials | Scanalyzed Robot Schematics ------------------ None Fabricated ------------ Nothing Alien Tech Used ----------------- None Achievements -------------- Everything Is Under Control Librarian Loot Pinata One Hack Too Far Oops Power Corrupts Shopping List Unlikely Earthworm Challenges ------------ None Game ------ Seed SpliceShockNanoactuators Manual? 0 Play Time 01:16:56 Cumulative 3.6 hours Start 2024.03.31 @ 23:35:18 End 2024.04.01 @ 03:40:12 Sessions 3 Manual Loads 0 Difficulty Rogue Special Mode None Game No. 7 Rogue 7 Adventurer 0 Explorer 0 Win Type - Total 0 Types 0/0/0/0/0/0/0/0/0 Lore% 2 Gallery% 4 Achievement% 6 Wizard Run 0 Options --------- Layout 1 ASCII 0 Keyboard 1 Movement Vi Keybinds 0 Fullscreen 1 Font 20/SmallcapsGlow Map View 56x47 Zoom Use 0% Tactical HUD 1 Map Filters NONE Filters NONE Steam 1 RUN: 5424ce1c-a004-4a13-8ceb-8f526a8e1bd7